bitfinex/quotes_ETHUSD_20250517
["timestamp","ask_amount","ask_price","bid_price","bid_amount"]
[1747465583182,0.34980067,2498.0,2497.0,35.71124776]
[1747465583386,0.34980067,2498.0,2497.0,37.61025577]
[1747465583885,0.34980067,2498.0,2497.0,36.37434777]
[1747465584283,0.34980067,2498.0,2497.0,31.94883277]
[1747465584483,4.00343769,2497.9,2497.0,31.94883277]
[1747465584874,0.34980067,2498.0,2497.0,39.39608377]
[1747465585093,0.34980067,2498.0,2497.0,38.88435077]
[1747465585287,0.34980067,2498.0,2497.0,34.69112177]
[1747465585479,0.34980067,2498.0,2497.0,31.94883277]
[1747465586091,0.34980067,2498.0,2497.0,16.88483277]
[1747465586092,4.00338774,2497.9,2497.0,16.88483277]
[1747465586362,4.3530203,2498.0,2497.0,31.94483277]
[1747465587006,4.00342756,2497.9,2497.0,31.94483277]
[1747465587491,4.8061605,2497.7,2497.0,23.94583277]
[1747465588102,4.8061605,2497.7,2497.0,8.88483277]
[1747465588299,4.00408471,2497.5,2497.0,4.88002701]
[1747465588504,4.00408471,2497.5,2497.0,19.94402701]
[1747465588672,4.00402506,2497.5,2497.0,19.94402701]
[1747465588869,4.00407713,2497.5,2497.0,19.94402701]
[1747465589202,4.00407713,2497.5,2497.0,19.13872701]
[1747465589405,4.00421642,2497.4,2497.0,4.07572701]
[1747465589600,4.80693545,2497.2,2496.8,17.301]
[1747465589801,0.8024,2497.2,2496.9,7.515]
[1747465593517,0.55,2497.9,2497.0,7.515]
[1747465593518,8.0,2497.6,2497.0,7.515]
[1747465593682,22.88380925,2497.6,2497.0,7.515]
[1747465593871,4.00400734,2497.5,2497.0,7.515]
[1747465595581,4.00427607,2497.4,2497.0,7.515]
[1747465595785,4.00440492,2497.3,2497.0,7.515]
[1747465595992,4.00424462,2497.4,2497.0,7.515]
[1747465596518,10.8798902,2497.6,2497.0,7.515]
[1747465596681,10.8798902,2497.6,2497.0,12.29660576]
[1747465596982,10.0774902,2497.6,2497.0,12.29660576]
[1747465597384,10.8798902,2497.9,2497.0,20.29660576]
[1747465597583,10.8798902,2497.9,2497.0,24.37233277]
[1747465597796,10.0774902,2497.9,2497.0,24.37233277]
[1747465597978,1.29525464,2498.1,2497.0,34.99140577]
[1747465598176,0.47885464,2498.1,2497.0,34.99140577]
[1747465598773,0.51092098,2498.2,2497.0,34.99140577]
[1747465599676,0.51092098,2498.2,2497.0,34.47172177]
[1747465600313,0.51092098,2498.2,2497.0,24.37233277]
[1747465600686,0.51092098,2498.2,2497.0,28.48526577]
[1747465602325,0.51092098,2498.2,2497.0,29.03526577]
[1747465602624,0.51092098,2498.2,2497.9,12.79856282]
[1747465602782,0.51092098,2498.2,2498.1,12.79824231]
[1747465603430,0.51092098,2498.2,2498.1,17.26581431]
[1747465603637,0.51092098,2498.2,2498.1,12.79824231]
[1747465603805,0.51092098,2498.2,2498.1,13.10416075]
[1747465604485,0.51092098,2498.2,2498.1,28.18316075]
[1747465604727,0.51092098,2498.2,2498.1,29.19181815]
[1747465605932,0.51092098,2498.2,2498.1,14.11281815]
[1747465606133,0.51092098,2498.2,2498.1,1.0086574]
[1747465606331,0.51092098,2498.2,2498.1,15.081]
[1747465606691,0.51092098,2498.2,2497.9,22.97250375]
[1747465606908,0.51092098,2498.2,2497.9,22.97242583]
[1747465607129,0.51092098,2498.2,2498.0,19.08308955]
[1747465607341,0.51092098,2498.2,2498.0,23.1588731]
[1747465607483,0.51092098,2498.2,2497.9,17.289]
[1747465607690,0.8325,2498.1,2498.0,7.512]
[1747465610088,0.51092098,2498.2,2498.0,7.512]
[1747465610799,0.51092098,2498.2,2498.0,11.51520254]
[1747465611198,0.51092098,2498.2,2498.1,11.57804231]
[1747465613350,0.51092098,2498.2,2498.1,20.34144231]
[1747465613837,0.51092098,2498.2,2498.1,22.54214231]
[1747465614498,0.51092098,2498.2,2498.1,23.09214231]
[1747465615410,0.51092098,2498.2,2498.1,22.54214231]
[1747465615613,0.51092098,2498.2,2498.1,25.94637473]
[1747465616426,0.51092098,2498.2,2498.1,18.37137473]
[1747465616630,0.51092098,2498.2,2498.1,33.53237473]
[1747465617034,0.51092098,2498.2,2498.1,18.37137473]
[1747465617236,0.51092098,2498.2,2498.1,31.32967473]
[1747465617633,0.51092098,2498.2,2498.1,31.33367473]
[1747465618315,0.51092098,2498.2,2498.1,36.98428873]
[1747465618517,0.51092098,2498.2,2498.1,31.34067473]
[1747465619053,0.51092098,2498.2,2498.1,16.17067473]
[1747465619251,0.51092098,2498.2,2498.1,7.40727473]
[1747465619418,0.51092098,2498.2,2498.1,19.18204231]
[1747465619625,0.51092098,2498.2,2498.1,4.00304231]
[1747465619831,0.51092098,2498.2,2498.1,19.18104231]
[1747465620231,0.51092098,2498.2,2498.1,19.17904231]
[1747465620436,0.51092098,2498.2,2497.9,17.53751218]
[1747465620633,0.7944,2498.1,2498.0,24.861]
[1747465623432,0.51092098,2498.2,2498.1,4.00304231]
[1747465626062,0.51092098,2498.2,2498.1,19.18504231]
[1747465626852,0.51092098,2498.2,2498.1,27.18504231]
[1747465627090,0.51092098,2498.2,2498.1,27.99684231]
[1747465628564,0.51092098,2498.2,2498.1,38.61591531]
[1747465628770,0.51092098,2498.2,2498.1,42.10965455]
[1747465629123,0.51092098,2498.2,2498.1,42.65965455]
[1747465629755,0.67204128,2498.4,2498.3,4.55272185]
[1747465630059,0.67204128,2498.4,2498.3,23.98849485]
[1747465630253,0.67204128,2498.4,2498.3,28.56442185]
[1747465630451,0.67204128,2498.4,2498.3,39.51901507]
[1747465630767,0.67204128,2498.4,2498.3,36.97092507]
[1747465630962,0.67204128,2498.4,2498.3,31.84027307]
[1747465631176,0.67204128,2498.4,2498.3,35.79784707]
[1747465631827,0.67204128,2498.4,2498.3,34.50927907]
[1747465633132,0.67204128,2498.4,2498.3,19.30927907]
[1747465633334,0.67204128,2498.4,2498.3,31.83727307]
[1747465633543,1.15540221,2499.1,2499.0,4.00160064]
[1747465633749,1.15540221,2499.1,2499.0,38.09463449]
[1747465634150,1.15540221,2499.1,2499.0,46.09463449]
[1747465635068,1.15540221,2499.1,2499.0,46.10263449]
[1747465635473,1.15540221,2499.1,2499.0,46.10363449]
[1747465635661,1.15540221,2499.1,2499.0,48.97391649]
[1747465635861,1.15540221,2499.1,2499.0,48.97291649]
[1747465636259,1.15540221,2499.1,2499.0,49.52291649]
[1747465637169,1.15540221,2499.1,2499.0,37.65993449]
[1747465637330,1.15540221,2499.1,2499.0,36.48560064]
[1747465637536,1.15540221,2499.1,2499.0,32.486]
[1747465637778,1.94500221,2499.1,2499.0,32.486]
[1747465637978,5.94644272,2499.1,2499.0,17.28]
[1747465638272,1.15540221,2499.1,2499.0,28.85960064]
[1747465638970,1.15540221,2499.1,2499.0,32.93532765]
[1747465639268,1.15540221,2499.1,2499.0,40.58732765]
[1747465639472,1.15540221,2499.1,2499.0,25.35732765]
[1747465639770,1.15540221,2499.1,2499.0,40.58532765]
[1747465640676,1.15540221,2499.1,2499.0,40.58132765]
[1747465640970,1.15540221,2499.1,2499.0,32.93432765]
[1747465641150,1.15540221,2499.1,2499.0,36.50660064]
[1747465641674,1.90750221,2499.1,2499.0,32.505]
[1747465642042,1.90750221,2499.1,2499.0,36.50660064]
[1747465643171,1.15540221,2499.1,2499.0,32.505]
[1747465643383,1.15540221,2499.1,2499.0,36.50660064]
[1747465644274,5.15684272,2499.1,2499.0,24.927]
[1747465644571,1.15540221,2499.1,2499.0,28.92860064]
[1747465647251,1.15540221,2499.1,2499.0,47.54767364]
[1747465647488,1.15540221,2499.1,2499.0,45.88020664]
[1747465647690,1.15540221,2499.1,2499.0,45.27880664]
[1747465647896,1.15540221,2499.1,2499.0,45.82880664]
[1747465648195,1.15540221,2499.1,2499.0,49.90453365]
[1747465648504,1.15540221,2499.1,2499.0,52.77340365]
[1747465649176,1.47764282,2499.5,2499.4,4.00096023]
[1747465649352,2.28324436,2500.5,2500.4,4.7595601]
[1747465649554,2.28324436,2500.5,2500.4,22.0335601]
[1747465649864,2.28324436,2500.5,2500.2,0.1228]
[1747465649865,0.7582,2500.4,2500.2,0.1228]
[1747465650186,2.28324436,2500.5,2500.3,11.64552005]
[1747465650387,2.28324436,2500.5,2500.4,11.8403601]
[1747465650554,3.04144436,2500.5,2500.4,7.646]
[1747465650909,3.04144436,2500.5,2500.4,11.6453601]
[1747465651288,3.04144436,2500.5,2500.4,7.646]
[1747465651757,3.04144436,2500.5,2500.4,11.6453601]
[1747465652401,3.59002526,2500.5,2500.2,0.1228]
[1747465652559,2.83182526,2500.5,2500.4,7.645]
[1747465652999,4.80817821,2500.4,2500.2,0.1228]
[1747465653291,8.8088,2500.3,2500.2,0.1228]
[1747465653596,13.35832005,2500.3,2500.2,0.1228]
[1747465653893,15.37727059,2500.3,2500.2,0.1228]
[1747465654255,1.3588,2499.9,2499.8,7.645]
[1747465654474,12.80934392,2499.7,2499.6,7.645]
[1747465654707,12.80976023,2499.4,2499.3,17.272]
[1747465654913,4.00128258,2499.2,2499.1,7.645]
[1747465655073,8.0,2499.3,2498.6,17.272]
[1747465655270,8.0,2499.3,2499.0,7.646]
[1747465655506,0.8088,2499.2,2499.0,7.646]
[1747465656007,4.81008989,2499.2,2499.0,7.646]
[1747465656181,0.8088,2498.7,2498.6,17.272]
[1747465656391,0.8088,2498.7,2498.6,24.918]
[1747465657878,4.81088108,2498.7,2498.6,24.918]
[1747465659303,4.76798108,2498.7,2498.6,24.918]
[1747465659498,5.64497266,2498.7,2498.6,24.918]
[1747465659700,14.19497266,2498.7,2498.6,17.272]
[1747465660004,12.00224125,2498.6,2498.5,7.647]
[1747465661012,12.55224125,2498.6,2498.5,7.647]
[1747465661414,12.00224125,2498.6,2498.5,7.647]
[1747465661710,13.7669484,2498.6,2498.5,7.647]
[1747465662277,13.51798821,2498.7,2498.5,7.647]
[1747465662278,1.64289158,2498.7,2498.5,7.647]
[1747465662478,12.00224125,2498.6,2498.5,7.647]
[1747465663124,13.31814125,2498.6,2498.5,7.647]
[1747465663915,0.7659,2498.0,2497.9,17.275]
[1747465664215,0.7659,2498.0,2497.9,24.924]
[1747465665824,4.76910256,2498.0,2497.9,17.275]
[1747465666135,4.76910256,2498.0,2497.9,24.924]
[1747465666516,0.7659,2498.0,2497.9,24.924]
[1747465667241,3.76894792,2498.1,2497.9,24.924]
[1747465667407,4.00296345,2498.2,2497.9,24.924]
[1747465667735,12.0027454,2498.3,2497.9,24.924]
[1747465668107,4.00288818,2498.2,2497.9,24.924]
[1747465668328,12.0027971,2498.3,2497.9,24.924]
[1747465668707,10.0774902,2498.2,2497.9,24.924]
[1747465669035,17.47383685,2498.2,2498.0,7.65]
[1747465669526,4.00304231,2498.1,2498.0,7.65]
[1747465670341,0.7971,2498.1,2498.0,7.65]
[1747465671624,10.8745902,2498.1,2498.0,7.65]
[1747465674258,14.87763251,2498.1,2498.0,7.65]
[1747465674423,10.8745902,2498.1,2498.0,7.65]
[1747465676662,14.87763251,2498.1,2498.0,7.65]
[1747465676856,17.56568802,2498.1,2498.0,7.65]
[1747465677859,10.8745902,2498.1,2498.0,7.65]
[1747465678734,14.87763251,2498.1,2498.0,7.65]
[1747465680362,10.8745902,2498.1,2498.0,7.65]
[1747465682626,10.0774902,2498.1,2498.0,7.65]
[1747465687150,10.0774902,2498.1,2498.0,12.41630256]
[1747465687353,10.0774902,2498.1,2498.0,16.49202957]
[1747465687656,0.4762341,2498.3,2498.2,4.00288207]
[1747465688034,0.4762341,2498.6,2498.3,4.00263248]
[1747465688637,0.4762341,2498.6,2498.4,4.00251458]
[1747465688837,0.4762341,2498.6,2498.5,7.843]
[1747465689587,0.4762341,2498.6,2498.5,14.19331532]
[1747465691338,10.0774902,2498.9,2498.7,4.00208108]
[1747465691767,10.0774902,2498.9,2498.8,21.28592092]
[1747465691968,10.0774902,2498.9,2498.8,17.284]
[1747465692377,10.0774902,2498.9,2498.8,21.28592092]
[1747465692581,0.05395605,2499.0,2498.8,22.38997049]
[1747465693172,0.05395605,2499.0,2498.8,18.38804957]
[1747465693475,0.05395605,2499.0,2498.8,17.284]
[1747465693981,4.00176077,2498.9,2498.8,17.284]
[1747465694285,4.81496077,2498.9,2498.8,25.126]
[1747465695662,14.89245097,2498.9,2498.8,25.126]
[1747465695894,16.78725428,2498.9,2498.8,25.126]
[1747465697291,10.8906902,2498.9,2498.8,25.126]
[1747465697496,10.0774902,2498.9,2498.8,25.126]
[1747465698201,14.07925097,2498.9,2498.8,25.126]
[1747465698869,22.07925097,2498.9,2498.8,25.126]
[1747465699807,22.62925097,2498.9,2498.8,25.126]
[1747465700314,26.21764024,2498.9,2498.8,25.126]
[1747465700982,22.07925097,2498.9,2498.8,25.126]
[1747465701531,4.00246269,2498.5,2498.0,17.282]
[1747465701713,10.8690902,2498.4,2498.0,17.282]
[1747465702009,10.0774902,2498.3,2498.1,7.842]
[1747465702212,4.00288207,2498.2,2498.1,7.842]
[1747465702919,10.0774902,2498.3,2498.1,7.842]
[1747465703514,10.0774902,2498.3,2498.1,10.75473606]
[1747465703819,10.0774902,2498.3,2498.2,4.8602098]
[1747465703974,10.0774902,2498.3,2498.2,4.82018207]
[1747465705218,10.0774902,2498.3,2498.1,2.91273606]
[1747465705407,10.0774902,2498.3,2498.2,11.77988207]
[1747465705901,10.0774902,2498.3,2498.2,11.6288544]
[1747465706216,10.0774902,2498.3,2498.2,15.63173647]
[1747465706716,10.0774902,2498.8,2498.5,4.00231295]
[1747465707484,10.0774902,2498.8,2498.2,16.44900731]
[1747465708621,10.0774902,2498.8,2498.3,7.777]
[1747465708622,4.00232008,2498.6,2498.3,7.777]
[1747465709619,8.0,2498.7,2498.3,7.777]
[1747465709789,12.00211131,2498.7,2498.3,7.777]
[1747465710419,8.0,2498.7,2498.3,11.77969099]
[1747465710626,10.0774902,2498.6,2498.3,7.777]
[1747465712726,14.07973341,2498.6,2498.3,7.777]
[1747465713340,14.07973341,2498.6,2498.0,22.09953921]
[1747465713341,8.7557,2498.5,2498.0,17.282]
[1747465713638,4.00295755,2498.2,2498.1,7.777]
[1747465713832,10.0774902,2498.4,2498.2,4.00284266]
[1747465714323,10.0774902,2498.4,2498.2,4.81724266]
[1747465714686,10.0774902,2498.4,2498.3,4.00272185]
[1747465714924,10.71295353,2498.8,2498.4,4.00247772]
[1747465715821,10.71295353,2498.8,2498.5,4.00225737]
[1747465716009,10.71295353,2498.8,2498.6,7.777]
[1747465716632,10.71295353,2498.8,2498.6,11.77923974]
[1747465716831,10.71295353,2498.8,2498.6,13.35741479]
[1747465717288,10.71295353,2498.8,2498.7,0.8144]
[1747465717630,10.71295353,2498.8,2498.7,4.81648108]
[1747465717824,10.0774902,2498.8,2498.7,4.81648108]
[1747465719609,0.05395605,2499.0,2498.8,4.00182136]
[1747465719927,0.05395605,2499.0,2498.9,17.282]
[1747465721448,0.05395605,2499.0,2498.9,25.058]
[1747465722634,10.13144625,2499.0,2498.9,25.058]
[1747465723430,10.13144625,2499.0,2498.9,29.82156077]
[1747465724932,0.05395605,2499.0,2498.9,29.82156077]
[1747465725123,0.05395605,2499.0,2498.9,33.20390634]
[1747465725497,0.05395605,2499.0,2498.9,41.20390634]
[1747465726094,0.05395605,2499.0,2498.9,43.66443934]
[1747465726298,0.05395605,2499.0,2498.9,41.20390634]
[1747465726500,0.05395605,2499.0,2498.9,43.56442234]
[1747465726934,0.05395605,2499.0,2498.9,41.20390634]
[1747465727130,0.05395605,2499.0,2498.9,33.42790634]
[1747465727331,0.05395605,2499.0,2498.9,25.42790634]
[1747465727699,0.05395605,2499.0,2498.9,40.97890634]
[1747465728237,0.05395605,2499.0,2498.9,33.20290634]
[1747465728441,0.05395605,2499.0,2498.9,32.44110634]
[1747465728731,0.05395605,2499.0,2498.9,28.43934557]
[1747465729638,0.05395605,2499.0,2498.9,32.44110634]
[1747465730434,0.05395605,2499.0,2498.9,28.43934557]
[1747465730604,0.05395605,2499.0,2498.9,32.44110634]
[1747465731841,0.05395605,2499.0,2498.9,28.43934557]
[1747465732937,0.85645605,2499.0,2498.9,25.057]
[1747465733138,4.85805669,2499.0,2498.9,25.057]
[1747465733339,12.85805669,2499.0,2498.9,17.282]
[1747465733541,12.85805669,2499.0,2498.9,25.057]
[1747465733728,14.54400892,2499.0,2498.9,25.057]
[1747465733927,10.54240828,2499.0,2498.9,25.057]
[1747465734120,25.17149912,2499.0,2498.9,25.057]
[1747465735841,25.17149912,2499.0,2498.9,7.775]
[1747465737409,25.80696245,2499.0,2498.9,7.775]
[1747465737812,4.77662185,2498.3,2498.2,17.277]
[1747465738013,4.77662185,2498.3,2498.2,25.053]
[1747465738340,12.77662185,2498.3,2498.2,25.053]
[1747465740511,12.55288207,2498.2,2497.5,17.281]
[1747465740760,12.55288207,2498.2,2497.6,7.777]
[1747465740761,4.00368338,2497.7,2497.6,7.777]
[1747465741075,4.77758338,2497.7,2497.6,7.777]
[1747465741411,12.77758338,2497.7,2497.6,7.777]
[1747465741758,12.55384368,2497.6,2497.5,17.281]
[1747465741908,12.55384368,2497.6,2497.5,25.058]
[1747465744543,12.55384368,2497.6,2497.5,17.281]
[1747465744716,12.55384368,2497.6,2497.5,25.059]
[1747465744717,13.31504368,2497.6,2497.5,25.059]
[1747465746443,9.3112,2497.6,2497.5,25.059]
[1747465746646,23.39253388,2497.6,2497.5,25.059]
[1747465746810,10.0774902,2497.6,2497.5,27.5649]
[1747465747016,10.0774902,2497.6,2497.5,31.568904]
[1747465747444,10.0774902,2497.6,2497.5,32.370404]
[1747465750655,10.0774902,2497.6,2497.5,25.059]
[1747465751056,10.0774902,2497.6,2497.5,17.281]
[1747465751255,10.0774902,2497.6,2497.5,25.061]
[1747465751464,10.0774902,2497.6,2497.5,29.065004]
[1747465751957,10.0774902,2497.6,2497.5,29.860004]
[1747465752256,4.82475046,2498.4,2497.9,4.00336149]
[1747465752452,4.00274718,2498.3,2498.0,7.78]
[1747465752651,4.00274718,2498.3,2498.1,7.78]
[1747465752958,4.00313491,2498.1,2497.6,11.77472586]
[1747465753159,4.00313491,2498.1,2497.6,7.3819002]
[1747465753360,4.00313491,2498.1,2497.7,7.78]
[1747465755734,4.00295945,2498.2,2497.7,11.78367154]
[1747465755937,4.55295945,2498.2,2497.7,11.78367154]
[1747465756259,12.55278894,2498.3,2497.8,4.00350101]
[1747465757062,4.00291869,2498.2,2497.7,11.78363078]
[1747465757524,4.00324586,2498.0,2497.5,17.281]
[1747465757728,4.00336282,2497.9,2497.8,7.78]
[1747465758335,5.36395559,2497.8,2497.5,17.281]
[1747465758535,0.55,2497.8,2497.6,7.78]
[1747465760264,0.8104,2498.0,2497.6,10.68651462]
[1747465760469,8.8104,2498.0,2497.6,10.68651462]
[1747465760652,8.8104,2498.0,2497.6,14.6903534]
[1747465761175,0.8104,2498.0,2497.6,10.68651462]
[1747465761332,4.00346224,2497.9,2497.6,7.78]
[1747465761531,4.81403556,2497.8,2497.6,7.78]
[1747465761845,12.00384368,2497.6,2497.5,17.281]
[1747465762038,8.0,2497.6,2497.5,25.061]
[1747465762377,12.00384368,2497.6,2497.5,25.061]
[1747465762870,8.0,2497.6,2497.5,25.061]
[1747465764569,12.55384368,2497.6,2497.5,25.061]
[1747465766485,14.35419129,2497.6,2497.5,25.061]
[1747465766708,15.17549129,2497.6,2497.5,25.061]
[1747465767401,13.37514368,2497.6,2497.5,25.061]
[1747465767855,8.0,2497.6,2497.5,25.061]
[1747465768562,12.00384368,2497.6,2497.5,25.061]
[1747465768753,8.0,2497.6,2497.5,25.061]
[1747465771402,0.63546333,2497.7,2497.6,4.00384368]
[1747465771896,0.63546333,2497.7,2497.5,25.061]
[1747465774274,4.00337983,2497.9,2497.5,25.061]
[1747465774786,4.00329027,2498.0,2497.5,29.06499313]
[1747465774986,4.00329027,2498.0,2497.5,25.061]
[1747465775180,4.00329027,2498.0,2497.5,29.06498944]
[1747465775772,8.0,2498.0,2497.6,4.00382302]
[1747465775976,0.63546333,2498.1,2497.9,4.00334475]
[1747465776299,0.63546333,2498.1,2498.0,7.754]
[1747465776665,4.00296038,2498.2,2498.0,7.754]
[1747465777898,4.00304231,2498.1,2498.0,7.754]
[1747465779574,14.08053251,2498.1,2498.0,7.754]
[1747465780069,10.0774902,2498.1,2498.0,7.754]
[1747465780310,10.0774902,2498.1,2498.0,13.72584988]
[1747465780476,10.0774902,2498.1,2498.0,21.44384988]
[1747465783881,10.0774902,2498.7,2498.5,4.79489884]
[1747465784083,10.0774902,2498.7,2498.6,7.753]
[1747465785392,10.0774902,2498.7,2498.6,11.75524125]
[1747465785586,10.0774902,2498.7,2498.6,15.93145512]
[1747465787601,0.05395605,2499.0,2498.9,4.75966077]
[1747465789523,0.05395605,2499.0,2498.9,15.17480277]
[1747465790025,0.05395605,2499.0,2498.9,13.76931177]
[1747465790415,0.05395605,2499.0,2498.9,21.76931177]
[1747465790624,0.05395605,2499.0,2498.9,23.97444104]
[1747465792732,0.00395605,2499.0,2498.9,23.97444104]
[1747465794250,0.00395605,2499.0,2498.9,24.52444104]
[1747465795311,0.00395605,2499.0,2498.9,23.97444104]
[1747465795514,0.00395605,2499.0,2498.9,37.40389604]
[1747465796413,0.00395605,2499.0,2498.9,37.61350755]
[1747465796626,0.00395605,2499.0,2498.9,37.569767]
[1747465796838,0.00395605,2499.0,2498.9,22.02389604]
[1747465797036,0.00395605,2499.0,2498.9,37.52364629]
[1747465799627,10.8572902,2500.1,2500.0,4.0]
[1747465799628,10.0774902,2500.1,2500.0,4.0]
[1747465799801,10.0774902,2500.1,2500.0,28.966]
[1747465800747,10.0774902,2500.1,2500.0,24.966]
[1747465800950,14.8571302,2500.1,2500.0,24.966]
[1747465801455,14.8571302,2500.1,2500.0,17.275]
[1747465801672,23.89168309,2500.1,2500.0,17.275]
[1747465802156,24.21954533,2500.1,2500.0,17.275]
[1747465804339,24.21954533,2500.1,2500.0,24.965]
[1747465806561,14.14205513,2500.1,2500.0,14.8875098]
[1747465806762,16.14984024,2500.1,2500.0,7.1975098]
[1747465807943,14.14205513,2500.1,2500.0,7.1975098]
[1747465809579,13.81419289,2500.1,2500.0,7.1975098]
[1747465810371,4.77964,2500.1,2500.0,7.1975098]
[1747465810676,12.77964,2500.1,2500.0,7.1975098]
[1747465811739,13.32964,2500.1,2500.0,7.1975098]
[1747465812503,12.77964,2500.1,2500.0,7.1975098]
[1747465812650,22.85964,2500.1,2500.0,7.1975098]
[1747465812852,25.54557307,2500.1,2500.0,7.1975098]
[1747465815138,26.09557307,2500.1,2500.0,7.1975098]
[1747465815332,26.09557307,2500.1,2500.0,14.8875098]
[1747465816071,26.09557307,2500.1,2500.0,7.1975098]
[1747465816443,28.10335818,2500.1,2500.0,7.1975098]
[1747465816985,26.09557307,2500.1,2500.0,7.1975098]
[1747465817185,25.54557307,2500.1,2500.0,7.1975098]
[1747465817480,10.08,2500.1,2500.0,7.1975098]
[1747465817778,22.07984,2500.1,2500.0,7.1975098]
[1747465818435,18.08,2500.1,2500.0,7.1975098]
[1747465818644,10.08,2500.1,2500.0,7.1975098]
[1747465820547,10.08,2500.2,2500.0,7.9863098]
[1747465821078,10.08,2500.2,2500.0,7.1975098]
[1747465821079,14.07978808,2500.2,2500.0,7.1975098]
[1747465821265,10.08,2500.2,2500.0,7.1975098]
[1747465822279,14.07975398,2500.2,2500.0,7.1975098]
[1747465822479,10.08,2500.2,2500.0,7.1975098]
[1747465823181,0.63807426,2500.4,2500.2,3.99965248]
[1747465823341,0.63807426,2500.4,2500.3,12.49142005]
[1747465825451,12.36324436,2500.5,2500.4,3.9993601]
[1747465825780,12.36324436,2500.5,2500.4,4.8012601]
[1747465825951,12.36324436,2500.5,2500.4,0.8019]
[1747465826154,12.36324436,2500.5,2500.2,0.8019]
[1747465826585,12.36324436,2500.5,2500.3,7.675]
[1747465828290,2.28324436,2500.5,2500.4,4.7573601]
[1747465830697,2.28324436,2500.5,2500.4,20.1233601]
[1747465831903,2.28324436,2500.5,2500.4,20.1203601]
[1747465833386,2.28324436,2500.5,2500.4,28.1203601]
[1747465833692,2.28324436,2500.5,2500.4,34.8092241]
[1747465833897,2.28324436,2500.5,2500.4,16.63823403]
[1747465834099,2.28324436,2500.5,2500.4,28.1243601]
[1747465835311,2.28324436,2500.5,2500.4,37.4917861]
[1747465835478,2.28324436,2500.5,2500.4,4.7573601]
[1747465835674,2.28324436,2500.5,2500.4,20.1253601]
[1747465836112,2.28324436,2500.5,2500.4,28.1253601]
[1747465836313,2.28324436,2500.5,2500.4,41.95692063]
[1747465836608,2.28324436,2500.5,2500.4,35.55155463]
[1747465837006,2.28324436,2500.5,2500.4,34.80253763]
[1747465838111,2.28324436,2500.5,2500.4,31.33784763]
[1747465838600,2.28324436,2500.5,2500.4,37.06557863]
[1747465841018,2.28324436,2500.5,2500.4,34.93038063]
[1747465841218,2.28324436,2500.5,2500.4,31.88784763]
[1747465841388,2.28324436,2500.5,2500.4,35.36203063]
[1747465845120,2.28324436,2500.5,2500.4,34.73520363]
[1747465851138,2.28324436,2500.5,2500.4,19.36720363]
[1747465851438,2.28324436,2500.5,2500.4,34.69120363]
[1747465853353,2.28324436,2500.5,2500.4,19.36720363]
[1747465853645,2.28324436,2500.5,2500.4,34.68520363]
[1747465854113,2.28324436,2500.5,2500.4,15.21184763]
[1747465854307,2.28324436,2500.5,2500.4,27.3283601]
[1747465854713,3.05644436,2500.5,2500.4,19.3273601]
[1747465855546,2.28324436,2500.5,2500.4,19.3273601]
[1747465856045,2.28324436,2500.5,2500.4,36.3999111]
[1747465856248,2.28324436,2500.5,2500.4,32.6280881]
[1747465856545,2.28324436,2500.5,2500.4,37.73349843]
[1747465857623,2.28324436,2500.5,2500.4,32.43277043]
[1747465857825,2.28324436,2500.5,2500.4,40.94603543]
[1747465858227,2.28324436,2500.5,2500.4,34.87377843]
[1747465858428,2.28324436,2500.5,2500.4,34.87477843]
[1747465858853,2.28324436,2500.5,2500.4,32.43377043]
[1747465859211,2.28324436,2500.5,2500.4,3.9993601]
[1747465859416,2.28324436,2500.5,2500.4,19.3253601]
[1747465860670,2.28324436,2500.5,2500.4,27.3253601]
[1747465860965,2.28324436,2500.5,2500.4,11.9993601]
[1747465861166,2.28324436,2500.5,2500.4,27.3333601]
[1747465861669,2.28324436,2500.5,2500.4,31.26504763]
[1747465861961,2.28324436,2500.5,2500.4,36.63879463]
[1747465862162,2.28324436,2500.5,2500.4,37.18879463]
[1747465862667,2.28324436,2500.5,2500.4,36.81675563]
[1747465863733,2.28324436,2500.5,2500.4,19.60736963]
[1747465863937,2.28324436,2500.5,2500.4,31.27504763]
[1747465864250,2.28324436,2500.5,2500.4,34.14545963]
[1747465864565,2.28324436,2500.5,2500.4,34.69545963]
[1747465867858,2.76660528,2501.2,2501.1,4.54824077]
[1747465868090,2.76660528,2501.2,2501.1,46.43176485]
[1747465868391,2.76660528,2501.2,2501.1,57.05083785]
[1747465868589,3.0888459,2501.6,2501.5,3.99760143]
[1747465868802,3.0888459,2501.6,2501.5,23.98037443]
[1747465869263,4.04916077,2502.0,2501.5,23.98037443]
[1747465869264,3.41108651,2502.0,2501.7,4.54728184]
[1747465869460,3.41108651,2502.0,2501.9,12.8106623]
[1747465869664,3.41108651,2502.0,2501.9,23.9797353]
[1747465870296,3.41108651,2502.0,2501.9,24.35689924]
[1747465871504,3.41108651,2502.0,2501.9,38.85689924]
[1747465871662,3.41108651,2502.0,2501.9,31.96205424]
[1747465871867,3.41108651,2502.0,2501.9,32.97582477]
[1747465872194,4.16448651,2502.0,2501.9,19.77912624]
[1747465872702,3.41108651,2502.0,2501.9,27.77912624]
[1747465872864,3.41108651,2502.0,2501.9,36.41472124]
[1747465873059,3.41108651,2502.0,2501.9,35.66909324]
[1747465873397,3.41108651,2502.0,2501.9,34.14526024]
[1747465873979,3.41108651,2502.0,2501.9,33.7680963]
[1747465875666,3.41108651,2502.0,2501.9,12.5469623]
[1747465875867,3.41108651,2502.0,2501.9,17.2003563]
[1747465876080,3.41108651,2502.0,2501.9,32.6053563]
[1747465876282,3.41108651,2502.0,2501.9,17.2003563]
[1747465876486,3.41108651,2502.0,2501.9,19.39787216]
[1747465876682,3.41108651,2502.0,2501.9,34.79987216]
[1747465877208,3.41108651,2502.0,2501.9,30.14347816]
[1747465877703,3.99544633,2502.9,2502.3,3.99621183]
[1747465877868,3.6848237,2503.0,2502.5,3.9959933]
[1747465878068,7.68003248,2503.0,2502.5,3.9959933]
[1747465878302,3.6848237,2503.0,2502.6,3.99577622]
[1747465878666,3.6848237,2503.0,2502.6,3.99583156]
[1747465879080,4.69331857,2503.0,2502.7,3.99564618]
[1747465879685,3.6848237,2503.0,2502.7,3.99564618]
[1747465880087,3.6848237,2503.0,2502.6,3.99578761]
[1747465880295,3.6848237,2503.0,2502.7,3.99567028]
[1747465880501,0.6524,2502.9,2502.7,3.99567028]
[1747465880674,0.6524,2502.9,2502.8,3.99552501]
[1747465884774,3.6848237,2503.0,2502.9,3.99536537]